[Event "Late-Titled-Tuesday-Blitz-June-25-2024"]
[Site "Chess.com"]
[Date "2024.06.25"]
[Round "7"]
[White "rdarruda"]
[Black "fin"]
[Result "1/2-1/2"]
[WhiteElo "2560"]
[BlackElo "2720"]
[TimeControl "180+1"]
[EndTime "15:16:39 PDT"]
[Termination "Game drawn by repetition"]

1. d4 {[%clk 0:02:53.4]} 1... f5 {[%clk 0:02:59.4]} 2. g4 {[%clk 0:02:49.7]}
2... fxg4 {[%clk 0:02:59.1]} 3. e4 {[%clk 0:02:50.3]} 3... d5 {[%clk 0:02:58.6]}
4. Nc3 {[%clk 0:02:47.1]} 4... dxe4 {[%clk 0:02:57.3]} 5. Nxe4 {[%clk 0:02:48]}
5... Nf6 {[%clk 0:02:57.4]} 6. Bg2 {[%clk 0:02:41]} 6... Nc6 {[%clk 0:02:52.1]}
7. Ne2 {[%clk 0:02:39.2]} 7... Bf5 {[%clk 0:02:46.4]} 8. N4g3 {[%clk 0:02:35.1]}
8... Bg6 {[%clk 0:02:44]} 9. O-O {[%clk 0:02:18.5]} 9... e6 {[%clk 0:02:43.2]}
10. Nf4 {[%clk 0:02:18]} 10... Bf7 {[%clk 0:02:42.3]} 11. Re1 {[%clk 0:02:16.6]}
11... Nxd4 {[%clk 0:02:27.6]} 12. Bxb7 {[%clk 0:02:11.3]} 12... Rb8 {[%clk
0:02:21.3]} 13. Bg2 {[%clk 0:02:10]} 13... Rb6 {[%clk 0:02:04.8]} 14. c3 {[%clk
0:02:09.2]} 14... Nf3+ {[%clk 0:01:59.5]} 15. Bxf3 {[%clk 0:02:08.3]} 15... gxf3
{[%clk 0:02:00.4]} 16. Qxf3 {[%clk 0:02:08.2]} 16... Bd6 {[%clk 0:01:59.6]} 17.
Nxe6 {[%clk 0:02:03.9]} 17... Bxe6 {[%clk 0:01:56.7]} 18. Rxe6+ {[%clk
0:02:04.8]} 18... Kf7 {[%clk 0:01:53.3]} 19. Re2 {[%clk 0:01:54.9]} 19... Rf8
{[%clk 0:01:53]} 20. Bg5 {[%clk 0:01:54.2]} 20... Kg8 {[%clk 0:01:53.1]} 21.
Rae1 {[%clk 0:01:48.6]} 21... Bc5 {[%clk 0:01:44.2]} 22. b4 {[%clk 0:01:23.9]}
22... Bd6 {[%clk 0:01:42.2]} 23. Ne4 {[%clk 0:01:10.1]} 23... Nxe4 {[%clk
0:01:27.2]} 24. Bxd8 {[%clk 0:01:09.7]} 24... Rxf3 {[%clk 0:01:26.6]} 25. Rxe4
{[%clk 0:01:10.3]} 25... Rxc3 {[%clk 0:01:21.9]} 26. Be7 {[%clk 0:00:57.9]}
26... Bxe7 {[%clk 0:01:20]} 27. Rxe7 {[%clk 0:00:58.8]} 27... Rxb4 {[%clk
0:01:18.2]} 28. Rd7 {[%clk 0:00:58]} 28... Rg4+ {[%clk 0:01:15]} 29. Kf1 {[%clk
0:00:55.6]} 29... h6 {[%clk 0:01:14.9]} 30. Ree7 {[%clk 0:00:54.8]} 30... Rc1+
{[%clk 0:01:13.6]} 31. Ke2 {[%clk 0:00:54.5]} 31... Rc2+ {[%clk 0:01:14.1]} 32.
Kf3 {[%clk 0:00:54.2]} 32... Rg6 {[%clk 0:01:11]} 33. Rxc7 {[%clk 0:00:54]}
33... Rxa2 {[%clk 0:01:10.1]} 34. Rxa7 {[%clk 0:00:53]} 34... Rb2 {[%clk
0:01:08.9]} 35. Ke3 {[%clk 0:00:39.9]} 35... Rb5 {[%clk 0:01:04.9]} 36. f4
{[%clk 0:00:38.9]} 36... Rh5 {[%clk 0:01:04]} 37. Ra2 {[%clk 0:00:37.4]} 37...
Rg1 {[%clk 0:01:02.5]} 38. Re5 {[%clk 0:00:31]} 38... Rh4 {[%clk 0:00:56.4]} 39.
Rf2 {[%clk 0:00:29.1]} 39... Re1+ {[%clk 0:00:52.7]} 40. Kf3 {[%clk 0:00:26.9]}
40... Ra1 {[%clk 0:00:51.6]} 41. Kg3 {[%clk 0:00:26.8]} 41... g5 {[%clk
0:00:34]} 42. fxg5 {[%clk 0:00:27.7]} 42... Rd4 {[%clk 0:00:29.4]} 43. gxh6
{[%clk 0:00:17.6]} 43... Rg1+ {[%clk 0:00:28.2]} 44. Rg2 {[%clk 0:00:17.3]}
44... Rxg2+ {[%clk 0:00:14.1]} 45. Kxg2 {[%clk 0:00:18.2]} 45... Kh7 {[%clk
0:00:14.5]} 46. Re6 {[%clk 0:00:17.6]} 46... Rf4 {[%clk 0:00:14.2]} 47. Kg3
{[%clk 0:00:17.2]} 47... Rf7 {[%clk 0:00:14.8]} 48. h4 {[%clk 0:00:17.2]} 48...
Rf1 {[%clk 0:00:15.1]} 49. Kg4 {[%clk 0:00:17.4]} 49... Rf8 {[%clk 0:00:14.8]}
50. Kh5 {[%clk 0:00:17.7]} 50... Rf5+ {[%clk 0:00:14.8]} 51. Kg4 {[%clk
0:00:18.1]} 51... Rf1 {[%clk 0:00:15.4]} 52. Kh5 {[%clk 0:00:18.2]} 52... Rf5+
{[%clk 0:00:15.7]} 53. Kg4 {[%clk 0:00:18.5]} 53... Rf1 {[%clk 0:00:16.5]} 54.
Kh5 {[%clk 0:00:19.2]} 54... Rf5+ {[%clk 0:00:16.8]} 1/2-1/2

[Event "Late-Titled-Tuesday-Blitz-June-25-2024"]
[Site "Chess.com"]
[Date "2024.06.25"]
[Round "7"]
[White "Sasha_Solovev_777"]
[Black "Eloist"]
[Result "0-1"]
[WhiteElo "2261"]
[BlackElo "2458"]
[TimeControl "180+1"]
[EndTime "15:16:39 PDT"]
[Termination "Eloist won by resignation"]

1. e4 {[%clk 0:02:59]} 1... e6 {[%clk 0:02:59.2]} 2. d4 {[%clk 0:02:58.9]} 2...
d5 {[%clk 0:02:59.4]} 3. Nc3 {[%clk 0:02:59.5]} 3... Nf6 {[%clk 0:02:58.8]} 4.
e5 {[%clk 0:02:59.4]} 4... Nfd7 {[%clk 0:02:58.9]} 5. f4 {[%clk 0:03:00.1]} 5...
c5 {[%clk 0:02:59.2]} 6. Nf3 {[%clk 0:03:00.8]} 6... Nc6 {[%clk 0:02:59.4]} 7.
Be3 {[%clk 0:03:01.4]} 7... a6 {[%clk 0:02:59.7]} 8. Qd2 {[%clk 0:03:01.2]} 8...
b5 {[%clk 0:02:59.8]} 9. a3 {[%clk 0:03:00.5]} 9... Qa5 {[%clk 0:02:58.2]} 10.
Nd1 {[%clk 0:02:33.7]} 10... Qxd2+ {[%clk 0:02:55.6]} 11. Kxd2 {[%clk
0:02:34.6]} 11... cxd4 {[%clk 0:02:42.8]} 12. Nxd4 {[%clk 0:02:32.7]} 12... Bb7
{[%clk 0:02:29.5]} 13. Bd3 {[%clk 0:02:28.6]} 13... Nc5 {[%clk 0:02:26.9]} 14.
Nf2 {[%clk 0:02:16]} 14... Be7 {[%clk 0:02:24.9]} 15. b4 {[%clk 0:02:07.2]}
15... Na4 {[%clk 0:02:18.3]} 16. g4 {[%clk 0:01:57.2]} 16... Rc8 {[%clk
0:02:13.1]} 17. Nxc6 {[%clk 0:01:36.1]} 17... Rxc6 {[%clk 0:02:05.3]} 18. Bd4
{[%clk 0:01:35.3]} 18... h5 {[%clk 0:01:54.5]} 19. h3 {[%clk 0:01:34.6]} 19...
Kd7 {[%clk 0:01:42.9]} 20. Rag1 {[%clk 0:01:32.8]} 20... hxg4 {[%clk 0:01:21]}
21. hxg4 {[%clk 0:01:32.2]} 21... Rcc8 {[%clk 0:01:18.9]} 22. Nd1 {[%clk
0:01:30.2]} 22... f6 {[%clk 0:01:04.6]} 23. f5 {[%clk 0:00:58.7]} 23... fxe5
{[%clk 0:00:41.9]} 24. fxe6+ {[%clk 0:00:58.3]} 24... Kd6 {[%clk 0:00:39.4]} 25.
Bc5+ {[%clk 0:00:37.7]} 25... Nxc5 {[%clk 0:00:24]} 26. bxc5+ {[%clk 0:00:38.6]}
26... Kc6 {[%clk 0:00:22.4]} 27. Ne3 {[%clk 0:00:33.3]} 27... Bg5 {[%clk
0:00:20.5]} 28. Ke2 {[%clk 0:00:33.2]} 28... e4 {[%clk 0:00:16.1]} 29. Bxe4
{[%clk 0:00:16.7]} 29... dxe4 {[%clk 0:00:16]} 30. Nf5 {[%clk 0:00:17.3]} 30...
Bf6 {[%clk 0:00:13.8]} 31. Rxh8 {[%clk 0:00:15.2]} 31... Rxh8 {[%clk 0:00:13]}
32. Rd1 {[%clk 0:00:16.1]} 32... Kxc5 {[%clk 0:00:12.4]} 33. Rd7 {[%clk
0:00:15.5]} 33... Bc6 {[%clk 0:00:11.7]} 34. Rc7 {[%clk 0:00:15.2]} 34... Kb6
{[%clk 0:00:12]} 35. Rf7 {[%clk 0:00:14.8]} 35... Rh2+ {[%clk 0:00:11.8]} 36.
Ke3 {[%clk 0:00:14.3]} 36... Rh3+ {[%clk 0:00:09.6]} 37. Ke2 {[%clk 0:00:13.3]}
37... Bd5 {[%clk 0:00:09]} 38. e7 {[%clk 0:00:12]} 38... Bxf7 {[%clk 0:00:08.9]}
39. Nd6 {[%clk 0:00:11.5]} 39... Bg6 {[%clk 0:00:08]} 40. Nf7 {[%clk 0:00:12.4]}
40... Bxf7 {[%clk 0:00:07.9]} 41. e8=Q {[%clk 0:00:10.9]} 41... Bxe8 {[%clk
0:00:07.8]} 0-1

[Event "Late-Titled-Tuesday-Blitz-June-25-2024"]
[Site "Chess.com"]
[Date "2024.06.25"]
[Round "7"]
[White "KatakuriDono"]
[Black "canary2016"]
[Result "1-0"]
[WhiteElo "2330"]
[BlackElo "2221"]
[TimeControl "180+1"]
[EndTime "15:16:40 PDT"]
[Termination "KatakuriDono won on time"]

1. d4 {[%clk 0:03:00.9]} 1... Nf6 {[%clk 0:02:55.8]} 2. Nf3 {[%clk 0:03:00.7]}
2... d5 {[%clk 0:02:55]} 3. g3 {[%clk 0:03:00.1]} 3... Bf5 {[%clk 0:02:44.7]} 4.
Bg2 {[%clk 0:02:59.4]} 4... e6 {[%clk 0:02:45.2]} 5. O-O {[%clk 0:02:58.9]} 5...
Bd6 {[%clk 0:02:45.2]} 6. c4 {[%clk 0:02:58]} 6... c5 {[%clk 0:02:41.1]} 7. cxd5
{[%clk 0:02:54.9]} 7... exd5 {[%clk 0:02:40.2]} 8. Nc3 {[%clk 0:02:54.4]} 8...
O-O {[%clk 0:02:39.1]} 9. Bg5 {[%clk 0:02:51.3]} 9... Be7 {[%clk 0:02:30.2]} 10.
dxc5 {[%clk 0:02:49.9]} 10... h6 {[%clk 0:02:24.3]} 11. Be3 {[%clk 0:02:41.4]}
11... Nc6 {[%clk 0:02:17.3]} 12. h3 {[%clk 0:02:34.3]} 12... Rc8 {[%clk
0:02:15.8]} 13. Nd4 {[%clk 0:02:30]} 13... Nxd4 {[%clk 0:01:58.9]} 14. Bxd4
{[%clk 0:02:29.4]} 14... Qd7 {[%clk 0:01:55.6]} 15. b4 {[%clk 0:02:19.8]} 15...
Bxh3 {[%clk 0:01:51.2]} 16. Rc1 {[%clk 0:02:12.1]} 16... Bxg2 {[%clk 0:01:41.5]}
17. Kxg2 {[%clk 0:02:13]} 17... Rfd8 {[%clk 0:01:41.3]} 18. Qd3 {[%clk
0:02:03.1]} 18... Qe6 {[%clk 0:01:06.9]} 19. Rfd1 {[%clk 0:01:59.4]} 19... Ne4
{[%clk 0:01:03.4]} 20. Qf3 {[%clk 0:01:47.3]} 20... Bg5 {[%clk 0:00:55]} 21. e3
{[%clk 0:01:45]} 21... b6 {[%clk 0:00:47.6]} 22. cxb6 {[%clk 0:01:34]} 22...
axb6 {[%clk 0:00:45.1]} 23. Na4 {[%clk 0:01:29.1]} 23... Rxc1 {[%clk 0:00:34.7]}
24. Rxc1 {[%clk 0:01:30]} 24... Nd2 {[%clk 0:00:34.9]} 25. Qe2 {[%clk
0:01:24.4]} 25... Nc4 {[%clk 0:00:35]} 26. Nb2 {[%clk 0:01:12.6]} 26... Nxb2
{[%clk 0:00:28.5]} 27. Qxb2 {[%clk 0:01:13.5]} 27... Qe4+ {[%clk 0:00:20.9]} 28.
Kg1 {[%clk 0:01:13.1]} 28... Qg6 {[%clk 0:00:18]} 29. b5 {[%clk 0:01:05.6]}
29... Re8 {[%clk 0:00:12.4]} 30. Rc6 {[%clk 0:01:03.4]} 30... Re6 {[%clk
0:00:06.9]} 31. Rc8+ {[%clk 0:00:58.4]} 31... Kh7 {[%clk 0:00:06.7]} 32. a4
{[%clk 0:00:54.1]} 32... Bf6 {[%clk 0:00:03.2]} 33. Bxf6 {[%clk 0:00:53.3]}
33... Rxf6 {[%clk 0:00:03.3]} 34. Rc1 {[%clk 0:00:45.1]} 34... Qf5 {[%clk
0:00:03.7]} 35. Rd1 {[%clk 0:00:43.9]} 35... Rg6 {[%clk 0:00:04.1]} 36. Qb1
{[%clk 0:00:36.8]} 36... Qh5 {[%clk 0:00:04.5]} 37. Qd3 {[%clk 0:00:33.3]} 37...
Qg4 {[%clk 0:00:04.8]} 38. Qxd5 {[%clk 0:00:31.9]} 38... Qxa4 {[%clk 0:00:04.9]}
39. Qd3 {[%clk 0:00:28]} 39... Qa5 {[%clk 0:00:04.9]} 40. Rc1 {[%clk 0:00:26.2]}
40... Qa2 {[%clk 0:00:04.8]} 41. Rc6 {[%clk 0:00:24.6]} 41... Qa1+ {[%clk
0:00:03.6]} 42. Kg2 {[%clk 0:00:25]} 42... Qb2 {[%clk 0:00:02.9]} 43. Rxb6
{[%clk 0:00:22.9]} 43... Qb4 {[%clk 0:00:01.6]} 44. Rxg6 {[%clk 0:00:22.6]}
44... fxg6 {[%clk 0:00:01.8]} 45. Qd5 {[%clk 0:00:22.1]} 45... Qb1 {[%clk
0:00:01.3]} 46. Qc6 {[%clk 0:00:22.2]} 46... Qb4 {[%clk 0:00:01]} 47. b6 {[%clk
0:00:22.2]} 1-0

[Event "Late-Titled-Tuesday-Blitz-June-25-2024"]
[Site "Chess.com"]
[Date "2024.06.25"]
[Round "7"]
[White "Dyadya81"]
[Black "LiemLe"]
[Result "1-0"]
[WhiteElo "2808"]
[BlackElo "3013"]
[TimeControl "180+1"]
[EndTime "15:16:41 PDT"]
[Termination "Dyadya81 won by checkmate"]

1. e4 {[%clk 0:03:00.9]} 1... c5 {[%clk 0:02:59.9]} 2. Nf3 {[%clk 0:02:59.2]}
2... d6 {[%clk 0:03:00.4]} 3. d4 {[%clk 0:02:58.5]} 3... cxd4 {[%clk 0:03:01.3]}
4. Nxd4 {[%clk 0:02:59]} 4... Nf6 {[%clk 0:03:02.2]} 5. Nc3 {[%clk 0:02:59.4]}
5... a6 {[%clk 0:03:02.8]} 6. h3 {[%clk 0:02:59.3]} 6... e5 {[%clk 0:03:02.4]}
7. Nb3 {[%clk 0:02:58.4]} 7... Be7 {[%clk 0:03:02.8]} 8. Be3 {[%clk 0:02:46.2]}
8... Be6 {[%clk 0:03:01.5]} 9. Qd2 {[%clk 0:02:45.6]} 9... Nbd7 {[%clk
0:02:55.7]} 10. O-O-O {[%clk 0:02:44.4]} 10... b5 {[%clk 0:02:55.7]} 11. Kb1
{[%clk 0:02:32.3]} 11... Nb6 {[%clk 0:02:34.1]} 12. Qe1 {[%clk 0:02:07.8]} 12...
b4 {[%clk 0:02:27.6]} 13. Ne2 {[%clk 0:01:44.6]} 13... a5 {[%clk 0:02:05.4]} 14.
Ng3 {[%clk 0:01:44.5]} 14... O-O {[%clk 0:02:03.9]} 15. Nc5 {[%clk 0:01:39.4]}
15... Bc8 {[%clk 0:01:54.5]} 16. f4 {[%clk 0:01:37.9]} 16... Qc7 {[%clk
0:01:49.1]} 17. Nd3 {[%clk 0:01:25.2]} 17... Nc4 {[%clk 0:01:47.5]} 18. Bc1
{[%clk 0:01:25.3]} 18... Rb8 {[%clk 0:01:40.8]} 19. Ka1 {[%clk 0:01:00.6]} 19...
Bd7 {[%clk 0:01:21.7]} 20. Nf5 {[%clk 0:00:58]} 20... Bxf5 {[%clk 0:01:21.1]}
21. exf5 {[%clk 0:00:58.9]} 21... e4 {[%clk 0:01:20.7]} 22. Nf2 {[%clk
0:00:55.6]} 22... d5 {[%clk 0:01:17.1]} 23. Ng4 {[%clk 0:00:54.5]} 23... Rfd8
{[%clk 0:01:10.2]} 24. Bxc4 {[%clk 0:00:47]} 24... Qxc4 {[%clk 0:01:11.1]} 25.
Ne5 {[%clk 0:00:47]} 25... Qxc2 {[%clk 0:01:10.4]} 26. Be3 {[%clk 0:00:45.3]}
26... b3 {[%clk 0:00:32.7]} 27. Rc1 {[%clk 0:00:37.3]} 27... Qxg2 {[%clk
0:00:32.7]} 28. Rg1 {[%clk 0:00:32.8]} 28... Qxh3 {[%clk 0:00:31.9]} 29. Nc6
{[%clk 0:00:33.1]} 29... Bb4 {[%clk 0:00:28.6]} 30. Qe2 {[%clk 0:00:25]} 30...
bxa2 {[%clk 0:00:23.7]} 31. Bd4 {[%clk 0:00:22.7]} 31... Ne8 {[%clk 0:00:17.6]}
32. f6 {[%clk 0:00:11.3]} 32... g6 {[%clk 0:00:17.1]} 33. Rcf1 {[%clk
0:00:06.2]} 33... Qd3 {[%clk 0:00:10.6]} 34. Qf2 {[%clk 0:00:02.7]} 34... Rdc8
{[%clk 0:00:09.3]} 35. Nxb8 {[%clk 0:00:02.2]} 35... Rxb8 {[%clk 0:00:10.2]} 36.
f5 {[%clk 0:00:02.8]} 36... Kf8 {[%clk 0:00:01.4]} 37. fxg6 {[%clk 0:00:03]}
37... hxg6 {[%clk 0:00:01.8]} 38. Qh2 {[%clk 0:00:02]} 38... Kg8 {[%clk
0:00:01]} 39. Rh1 {[%clk 0:00:01.8]} 39... Ng7 {[%clk 0:00:01]} 40. Qh8# {[%clk
0:00:01.6]} 1-0

[Event "Late-Titled-Tuesday-Blitz-June-25-2024"]
[Site "Chess.com"]
[Date "2024.06.25"]
[Round "7"]
[White "MagnusCarlsen"]
[Black "h4parah5"]
[Result "1-0"]
[WhiteElo "3172"]
[BlackElo "2966"]
[TimeControl "180+1"]
[EndTime "15:16:44 PDT"]
[Termination "MagnusCarlsen won by resignation"]

1. e4 {[%clk 0:02:58.9]} 1... e5 {[%clk 0:02:57.6]} 2. f4 {[%clk 0:02:57.8]}
2... exf4 {[%clk 0:02:54.2]} 3. Nf3 {[%clk 0:02:56.9]} 3... Nf6 {[%clk
0:02:53.6]} 4. e5 {[%clk 0:02:56.4]} 4... Nh5 {[%clk 0:02:52.9]} 5. Qe2 {[%clk
0:02:56.2]} 5... Be7 {[%clk 0:02:50.9]} 6. Nc3 {[%clk 0:02:54]} 6... O-O {[%clk
0:02:43.5]} 7. d4 {[%clk 0:02:51.1]} 7... d6 {[%clk 0:02:43]} 8. Bd2 {[%clk
0:02:51]} 8... Nc6 {[%clk 0:02:37.3]} 9. O-O-O {[%clk 0:02:50.9]} 9... Bg4
{[%clk 0:02:35.3]} 10. Qe4 {[%clk 0:02:50.9]} 10... dxe5 {[%clk 0:02:27.3]} 11.
dxe5 {[%clk 0:02:44.5]} 11... Qc8 {[%clk 0:02:17]} 12. Nd5 {[%clk 0:02:36.4]}
12... Re8 {[%clk 0:02:09.1]} 13. Bd3 {[%clk 0:02:28]} 13... g6 {[%clk
0:02:08.5]} 14. Bc3 {[%clk 0:02:26.1]} 14... Bf8 {[%clk 0:01:58.9]} 15. Rhe1
{[%clk 0:02:04]} 15... Bg7 {[%clk 0:01:55.8]} 16. Bb5 {[%clk 0:01:55.6]} 16...
a6 {[%clk 0:01:17]} 17. Bxc6 {[%clk 0:01:55.4]} 17... bxc6 {[%clk 0:01:17.9]}
18. Nb4 {[%clk 0:01:54.7]} 18... c5 {[%clk 0:01:16.9]} 19. Nd3 {[%clk
0:01:49.9]} 19... Qe6 {[%clk 0:01:12.9]} 20. Qa4 {[%clk 0:01:38.7]} 20... Bf8
{[%clk 0:01:02.2]} 21. Kb1 {[%clk 0:01:26.9]} 21... Rad8 {[%clk 0:01:00]} 22.
Nxf4 {[%clk 0:01:23]} 22... Rxd1+ {[%clk 0:00:54.6]} 23. Rxd1 {[%clk 0:01:22.7]}
23... Nxf4 {[%clk 0:00:54.1]} 24. Qxf4 {[%clk 0:01:21.3]} 24... Qf5 {[%clk
0:00:51.4]} 25. Qg3 {[%clk 0:00:52.7]} 25... Bg7 {[%clk 0:00:49.7]} 26. Re1
{[%clk 0:00:48.9]} 26... Qh5 {[%clk 0:00:45.6]} 27. Nd2 {[%clk 0:00:47.4]} 27...
Bf5 {[%clk 0:00:38.3]} 28. b3 {[%clk 0:00:42]} 28... Rd8 {[%clk 0:00:35.9]} 29.
Kb2 {[%clk 0:00:39.4]} 29... Bh6 {[%clk 0:00:30.7]} 30. e6 {[%clk 0:00:32.4]}
30... Bxe6 {[%clk 0:00:28.3]} 31. Ne4 {[%clk 0:00:31.7]} 31... Bg7 {[%clk
0:00:20.5]} 32. Bxg7 {[%clk 0:00:31.1]} 32... Kxg7 {[%clk 0:00:20.7]} 33. Qc3+
{[%clk 0:00:30.9]} 33... Kh6 {[%clk 0:00:18.2]} 34. h3 {[%clk 0:00:30.4]} 34...
Qd5 {[%clk 0:00:16.4]} 35. Nxc5 {[%clk 0:00:26]} 35... Rd6 {[%clk 0:00:13.4]}
36. Re4 {[%clk 0:00:23]} 36... Rc6 {[%clk 0:00:08.7]} 37. Rh4+ {[%clk
0:00:20.8]} 37... Kg5 {[%clk 0:00:08.6]} 38. Ne4+ {[%clk 0:00:15.4]} 38... Kxh4
{[%clk 0:00:05.5]} 39. Qg3+ {[%clk 0:00:14.8]} 39... Kh5 {[%clk 0:00:05.2]} 40.
Nf6+ {[%clk 0:00:15]} 40... Kh6 {[%clk 0:00:05.5]} 41. Nxd5 {[%clk 0:00:14.1]}
41... Bxd5 {[%clk 0:00:06.4]} 42. Qh4+ {[%clk 0:00:14.4]} 1-0

[Event "Late-Titled-Tuesday-Blitz-June-25-2024"]
[Site "Chess.com"]
[Date "2024.06.25"]
[Round "7"]
[White "yaguigor"]
[Black "talaicito"]
[Result "1-0"]
[WhiteElo "2558"]
[BlackElo "2375"]
[TimeControl "180+1"]
[EndTime "15:16:44 PDT"]
[Termination "yaguigor won on time"]

1. d4 {[%clk 0:03:00.9]} 1... e6 {[%clk 0:02:59.8]} 2. e4 {[%clk 0:02:59.7]}
2... d5 {[%clk 0:02:59.7]} 3. Bd3 {[%clk 0:02:58.8]} 3... dxe4 {[%clk
0:02:56.1]} 4. Bxe4 {[%clk 0:02:59.7]} 4... Nf6 {[%clk 0:02:56.4]} 5. Bf3 {[%clk
0:02:59.3]} 5... Be7 {[%clk 0:02:52.4]} 6. Ne2 {[%clk 0:02:56.2]} 6... O-O
{[%clk 0:02:52.9]} 7. O-O {[%clk 0:02:47.2]} 7... c5 {[%clk 0:02:52.8]} 8. Be3
{[%clk 0:02:45.3]} 8... cxd4 {[%clk 0:02:50.8]} 9. Nxd4 {[%clk 0:02:41.8]} 9...
e5 {[%clk 0:02:47.3]} 10. Nb5 {[%clk 0:02:33.8]} 10... a6 {[%clk 0:02:47]} 11.
Qxd8 {[%clk 0:02:31.2]} 11... Bxd8 {[%clk 0:02:46.8]} 12. Nd6 {[%clk 0:02:30.4]}
12... Nc6 {[%clk 0:02:45.2]} 13. Bxc6 {[%clk 0:02:23.6]} 13... bxc6 {[%clk
0:02:45]} 14. Nc3 {[%clk 0:02:18.1]} 14... Nd5 {[%clk 0:02:33.6]} 15. Nce4
{[%clk 0:02:09.2]} 15... Nxe3 {[%clk 0:02:27.7]} 16. fxe3 {[%clk 0:02:08.2]}
16... Bb6 {[%clk 0:02:28.1]} 17. Nc4 {[%clk 0:02:02.7]} 17... Ba7 {[%clk
0:02:21.5]} 18. Ned6 {[%clk 0:01:51.8]} 18... Be6 {[%clk 0:02:08.5]} 19. Kh1
{[%clk 0:01:43.4]} 19... f6 {[%clk 0:02:01]} 20. e4 {[%clk 0:01:42.3]} 20...
Rfd8 {[%clk 0:01:52]} 21. Rad1 {[%clk 0:01:41.1]} 21... Rab8 {[%clk 0:01:34.2]}
22. c3 {[%clk 0:01:33.9]} 22... Bc5 {[%clk 0:01:31.9]} 23. b4 {[%clk 0:01:27.3]}
23... Ba7 {[%clk 0:00:56.1]} 24. a4 {[%clk 0:01:21.7]} 24... Kf8 {[%clk
0:00:51.6]} 25. Rd2 {[%clk 0:01:18.8]} 25... Bxc4 {[%clk 0:00:48.7]} 26. Nxc4
{[%clk 0:01:17.7]} 26... Rxd2 {[%clk 0:00:49.2]} 27. Nxd2 {[%clk 0:01:17.9]}
27... Rd8 {[%clk 0:00:48.9]} 28. Nc4 {[%clk 0:01:14.2]} 28... Rd3 {[%clk
0:00:47.6]} 29. Rc1 {[%clk 0:01:14.2]} 29... Ke7 {[%clk 0:00:42.2]} 30. g4
{[%clk 0:01:02.3]} 30... Ke6 {[%clk 0:00:39.9]} 31. Kg2 {[%clk 0:01:00.5]} 31...
g6 {[%clk 0:00:38.1]} 32. Rc2 {[%clk 0:00:57.1]} 32... f5 {[%clk 0:00:29.2]} 33.
exf5+ {[%clk 0:00:55]} 33... gxf5 {[%clk 0:00:30.1]} 34. gxf5+ {[%clk
0:00:53.7]} 34... Kxf5 {[%clk 0:00:31]} 35. Na5 {[%clk 0:00:51.2]} 35... Rd6
{[%clk 0:00:23.3]} 36. Re2 {[%clk 0:00:37.7]} 36... e4 {[%clk 0:00:23.2]} 37. h3
{[%clk 0:00:23.3]} 37... Rg6+ {[%clk 0:00:20.7]} 38. Kh2 {[%clk 0:00:23]} 38...
Kf4 {[%clk 0:00:18.4]} 39. Nc4 {[%clk 0:00:20.6]} 39... Bb8 {[%clk 0:00:14.4]}
40. Rf2+ {[%clk 0:00:18]} 40... Kg5+ {[%clk 0:00:12.1]} 41. Kh1 {[%clk
0:00:18.7]} 41... Kh4 {[%clk 0:00:11.1]} 42. Re2 {[%clk 0:00:15.2]} 42... Re6
{[%clk 0:00:10]} 43. Kg2 {[%clk 0:00:12.6]} 43... h5 {[%clk 0:00:08.5]} 44. Nd2
{[%clk 0:00:11.9]} 1-0